lending/lending_fUSD_20251116
["ID","MTS","AMOUNT","RATE_DAILY","PERIOD"]
[394124000,1763310382793,625.659022,0.00035,31]
[394124001,1763310382942,151.0,0.00035,31]
[394124002,1763310383138,625.659022,0.0003691,31]
[394124003,1763310383482,625.659022,0.00039888,120]
[394124004,1763310384628,710.35,0.00041448,30]
[394124005,1763310385273,625.659022,0.00035,31]
[394124006,1763310385631,625.659022,0.0003691,31]
[394124007,1763310385978,625.659022,0.00039888,120]
[394124008,1763310387011,625.659022,0.00035,31]
[394124009,1763310387336,625.659022,0.0003691,31]
[394124010,1763310387718,625.65903,0.00039888,120]
[394124011,1763310388786,284.116,0.0003,30]
[394124012,1763310389367,1000.0,0.0003,90]
[394124013,1763310394570,151.0,0.00035,31]
[394124014,1763310394942,151.0,0.0003691,31]
[394124015,1763310395291,151.0,0.00039888,120]
[394124016,1763310396862,174.385348,0.00035,31]
[394124017,1763310397500,151.0,0.00035,31]
[394124018,1763310397989,151.0,0.00036863,31]
[394124019,1763310398327,151.0,0.00039592,120]
[394124020,1763310399439,151.0,0.00035,31]
[394124021,1763310399799,151.0,0.00036863,31]
[394124022,1763310400100,151.0,0.00039592,120]
[394124023,1763310401809,151.0,0.00035,31]
[394124024,1763310401951,301.95128,0.00036863,31]
[394124025,1763310402356,2141.31509155,0.00035,30]
[394124026,1763310405507,151.0,0.00035,31]
[394124027,1763310405783,151.0,0.0003691,31]
[394124028,1763310406091,151.0,0.00039888,120]
[394124029,1763310407177,108018.1997,0.00043444,30]
[394124030,1763310407268,75612.7398,0.00047444,30]
[394124031,1763310407361,96136.1977,0.00045444,30]
[394124032,1763310407453,151.0,0.00035,31]
[394124033,1763310407788,151.0,0.0003691,31]
[394124034,1763310407878,694.79,0.00041448,30]
[394124036,1763310408233,151.0,0.00039888,120]
[394124037,1763310408642,151.0,0.00035,31]
[394124038,1763310409134,151.0,0.0003691,31]
[394124039,1763310409315,180.093633,0.00035,31]
[394124040,1763310415491,29715.93700843,0.000162,5]
[394124041,1763310417094,10638.0,0.00041729,117]
[394124042,1763310417334,323.02,0.000305,30]
[394124043,1763310417622,323.02,0.000322,30]
[394124044,1763310417938,323.02,0.000345,30]
[394124045,1763310418656,323.02,0.000363,30]
[394124046,1763310418952,323.02,0.000376,30]
[394124047,1763310419135,525.42375678,0.0004931,30]
[394124048,1763310419226,151.0,0.00035,31]
[394124049,1763310419341,323.02,0.00041,30]
[394124050,1763310419661,151.0,0.0003691,31]
[394124051,1763310420509,151.0,0.00039888,120]
[394124052,1763310420705,769.19859554,0.0004931,30]
[394124053,1763310421100,2000.0,0.0004931,30]
[394124054,1763310423066,151.0,0.00035,31]
[394124055,1763310423302,150.0,0.00043427,30]
[394124056,1763310423497,151.0,0.0003691,31]
[394124057,1763310424002,1208.37,0.00049315,30]
[394124058,1763310427156,4123.09351448,0.00015,2]
[394124059,1763310427536,264.019,0.00049315,30]
[394124060,1763310427640,153.866856,0.00035,31]
[394124061,1763310428177,153.866856,0.0003691,31]
[394124062,1763310428509,153.866856,0.00039888,120]
[394124063,1763310429542,151.0,0.00035,31]
[394124064,1763310429738,153.866856,0.00035,31]
[394124065,1763310430063,153.866856,0.0003691,31]
[394124066,1763310430382,151.0,0.0003691,31]
[394124067,1763310430472,153.866856,0.00039888,120]
[394124068,1763310430929,705.67,0.00041448,30]
[394124069,1763310431256,250.0,0.00049315,30]
[394124070,1763310431783,153.866856,0.00035,31]
[394124071,1763310431883,250.0,0.00049315,30]
[394124072,1763310432349,153.866856,0.0003691,31]
[394124073,1763310432558,250.0,0.00049315,30]
[394124074,1763310432643,153.866856,0.00039888,120]
[394124075,1763310432927,200.0,0.00049315,30]
[394124076,1763310433169,250.0,0.00049315,30]
[394124077,1763310433745,207.4,0.00049315,30]
[394124078,1763310433832,153.866856,0.00035,31]
[394124079,1763310433921,250.0,0.00049315,30]
[394124080,1763310434030,218.83514421,0.00043427,30]
[394124081,1763310434125,153.866856,0.0003691,31]
[394124082,1763310434231,215.0738,0.00049315,30]
[394124083,1763310434319,153.866865,0.00039888,120]
[394124084,1763310434410,250.0,0.00049315,30]
[394124085,1763310434788,223.0315306,0.00049315,30]
[394124086,1763310435055,250.0,0.00049315,30]
[394124087,1763310435249,151.0,0.00035,31]
[394124088,1763310435457,231.28369723,0.00049315,30]
[394124089,1763310435687,250.0,0.00049315,30]
[394124090,1763310436090,239.84119403,0.00049315,30]
[394124091,1763310436286,151.0,0.0003691,31]
[394124092,1763310436382,250.0,0.00049315,30]
[394124093,1763310436580,151.0,0.00039888,120]
[394124094,1763310436763,248.71531821,0.00049315,30]
[394124095,1763310436950,250.0,0.00049315,30]
[394124096,1763310437387,257.91778498,0.00049315,30]
[394124097,1763310437560,250.0,0.00049315,30]
[394124098,1763310438011,267.46074303,0.00049315,30]
[394124099,1763310438168,174.298496,0.00035,31]
[394124100,1763310438670,277.35679052,0.00049315,30]
[394124101,1763310439266,250.0,0.00049315,30]
[394124102,1763310439359,287.61899177,0.00049315,30]
[394124103,1763310439919,250.0,0.00049315,30]
[394124104,1763310440018,298.26089446,0.00049315,30]
[394124105,1763310440581,250.0,0.00049315,30]
[394124106,1763310440689,309.29654756,0.00049315,30]
[394124107,1763310441211,320.74051982,0.00049315,30]
[394124108,1763310441295,250.0,0.00049315,30]
[394124109,1763310441842,332.60791905,0.00049315,30]
[394124110,1763310441936,250.0,0.00049315,30]
[394124112,1763310442773,344.91441206,0.00049315,30]
[394124113,1763310442861,250.0,0.00049315,30]
[394124114,1763310443162,357.6762453,0.00049315,30]
[394124115,1763310443333,250.0,0.00049315,30]
[394124116,1763310443802,370.91026638,0.00049315,30]
[394124117,1763310443830,18918.81731289,0.00016256,2]
[394124118,1763310443855,2000.0,0.00016256,2]
[394124119,1763310444032,250.0,0.00049315,30]
[394124120,1763310444152,300.0,0.0004811,30]
[394124121,1763310444447,384.63394623,0.00049315,30]
[394124122,1763310444640,250.0,0.00049315,30]
[394124123,1763310444752,151.0,0.00035,31]
[394124124,1763310445083,398.86540225,0.00049315,30]
[394124125,1763310445173,151.0,0.00035,31]
[394124126,1763310445276,151.0,0.0003691,31]
[394124127,1763310445463,151.0,0.00035,31]
[394124128,1763310445560,151.0,0.0003691,31]
[394124129,1763310445922,151.0,0.00039888,120]
[394124130,1763310446022,151.0,0.00039888,120]
[394124131,1763310446114,151.0,0.0003691,31]
[394124132,1763310446284,151.0,0.00039888,120]
[394124133,1763310447103,151.0,0.00035,31]
[394124134,1763310447351,151.0,0.00035,31]
[394124135,1763310447462,250.0,0.000308,30]
[394124136,1763310447559,151.0,0.0003691,31]
[394124137,1763310447880,215.294352,0.0003691,31]
[394124138,1763310448229,1208.76,0.00049315,30]
[394124139,1763310448660,150.0,0.00043427,30]
[394124140,1763310448749,290.17428,0.00039888,120]
[394124142,1763310453704,694.8,0.00041448,30]
[394124143,1763310454494,12013.08419932,0.00035,30]
[394124144,1763310455308,151.0,0.00035,31]
[394124145,1763310456253,151.0,0.00035,31]
[394124146,1763310456558,151.0,0.0003691,31]
[394124147,1763310456897,151.0,0.00039888,120]
[394124148,1763310458339,151.0,0.00035,31]
[394124149,1763310458767,193.316583,0.0003691,31]
[394124150,1763310459207,529.2141568,0.00043427,30]
[394124151,1763310459856,1208.76,0.00049315,30]
[394124152,1763310460783,-5514.42037686,0.00016256,2]
[394124153,1763310461703,151.0,0.00035,31]
[394124154,1763310461793,151.0,0.00035,31]
[394124155,1763310461999,151.0,0.0003691,31]
[394124156,1763310462317,151.0,0.00039888,120]
[394124157,1763310463294,151.0,0.00035,31]
[394124158,1763310463800,246.521459,0.0003691,31]
[394124159,1763310463884,-10000.01,0.00016256,2]
[394124160,1763310463908,-10000.01,0.00016256,2]
[394124161,1763310464893,151.0,0.00035,31]
[394124162,1763310465014,151.0,0.00035,31]
[394124163,1763310465173,151.0,0.0003691,31]
[394124164,1763310465527,151.0,0.00039888,120]
[394124165,1763310465637,151.0,0.0003691,31]
[394124166,1763310465932,151.0,0.00039888,120]
[394124167,1763310466735,-1200.0,0.00016255,2]
[394124168,1763310467464,108018.1997,0.00043444,30]
[394124169,1763310467556,75612.7398,0.00047444,30]
[394124170,1763310467659,1208.76,0.00049315,30]
[394124171,1763310467763,96136.1977,0.00045444,30]
[394124172,1763310472445,603.713558,0.00035,31]
[394124173,1763310472831,151.0,0.00035,31]
[394124174,1763310472950,603.713558,0.0003691,31]
[394124175,1763310473050,150.0,0.00043427,30]
[394124176,1763310473160,151.0,0.0003691,31]
[394124177,1763310473364,603.713558,0.00039888,120]
[394124178,1763310473462,151.0,0.00039888,120]
[394124179,1763310474595,2596.0,0.0003718,30]
[394124180,1763310474688,603.713558,0.00035,31]
[394124181,1763310474949,603.713558,0.0003691,31]
[394124182,1763310475237,1208.76,0.00049315,30]
[394124183,1763310475798,603.713558,0.00039888,120]
[394124184,1763310476228,693.26,0.00041448,30]
[394124185,1763310476312,1000.0,0.0004662,30]
[394124186,1763310477112,1000.0,0.00046894,30]
[394124187,1763310477451,1000.0,0.00047168,30]
[394124188,1763310477610,603.713558,0.00035,31]
[394124189,1763310477947,603.713558,0.0003691,31]
[394124190,1763310478237,1000.0,0.00047442,30]
[394124191,1763310478525,603.713558,0.00039888,120]
[394124192,1763310478606,1000.0,0.00047716,30]
[394124193,1763310479250,1000.0,0.0004799,30]
[394124194,1763310479574,1000.0,0.00048264,30]
[394124195,1763310479732,603.713558,0.00035,31]
[394124196,1763310480013,1000.0,0.00048538,30]
[394124197,1763310480235,603.713558,0.0003691,31]
[394124198,1763310480354,1000.0,0.00048812,30]
[394124199,1763310480749,1000.0,0.00049086,30]
[394124200,1763310481162,603.713553,0.00039888,120]
[394124201,1763310482794,1206.81,0.00049315,30]
[394124203,1763310483547,3523.80467767,0.00043427,30]
[394124205,1763310488607,7663.50047995,0.0001439,2]
[394124206,1763310493092,-1680.76,0.0004,30]
[394124207,1763310493595,-200.0,0.00049315,30]
[394124208,1763310493677,-207.4,0.00049315,30]
[394124209,1763310493765,-215.0738,0.00049315,30]
[394124210,1763310493842,-223.0315306,0.00049315,30]
[394124211,1763310493920,-231.28369723,0.00049315,30]
[394124212,1763310494003,-239.84119403,0.00049315,30]
[394124213,1763310494082,-248.71531821,0.00049315,30]
[394124214,1763310494170,-257.91778498,0.00049315,30]
[394124215,1763310494252,-250.0,0.00049315,30]
[394124216,1763310494336,-369.24753922,0.00049315,30]
[394124217,1763310494420,-250.0,0.00049315,30]
[394124218,1763310494500,-500.0,0.00049315,60]
[394124219,1763310494590,-1000.0,0.0004936,30]
[394124220,1763310494678,-150.0,0.00049368,120]
[394124221,1763310494763,-500.0,0.0004937,120]
[394124222,1763310494844,-152.0,0.000494,120]
[394124223,1763310494929,-500.0,0.0004942,120]
[394124224,1763310495019,-215.37275004,0.00049425,120]
[394124225,1763310495104,-150.0,0.00049427,30]
[394124226,1763310495197,-54009.0998,0.00049444,120]
[394124227,1763310495284,-1694.09,0.00049459,120]
[394124229,1763310495371,-150.0,0.00049493,30]
[394124230,1763310495467,-8385.7803438,0.000495,120]
[394124231,1763310495555,-254.77219229,0.000495,120]
[394124232,1763310495650,-500.0,0.000495,120]
[394124233,1763310495748,-380.0,0.000495,120]
[394124234,1763310495845,-390.0,0.000495,120]
[394124235,1763310495950,-1000000.0,0.000495,120]
[394124236,1763310496045,-150.0,0.00049556,30]
[394124237,1763310496139,-150.0,0.00049567,30]
[394124238,1763310496232,-500.0,0.00049589,60]
[394124239,1763310496311,-608.0,0.000496,120]
[394124240,1763310496391,-560.0,0.000496,120]
[394124241,1763310496468,-1554.0,0.000496,120]
[394124242,1763310496543,-390.0,0.0004963,120]
[394124243,1763310496627,-1000.0,0.00049634,30]
[394124244,1763310496711,-555.0,0.0004966,120]
[394124245,1763310496795,-150.0,0.00049707,30]
[394124246,1763310496880,-150.0,0.00049731,120]
[394124247,1763310496969,-150.0,0.00049738,30]
[394124248,1763310497062,-171.31,0.00049738,30]
[394124249,1763310497150,-150.0,0.00049766,30]
[394124250,1763310497246,-152.0,0.000498,120]
[394124251,1763310497342,-230.46792501,0.000498,120]
[394124252,1763310497433,-182.98720738,0.000498,30]
[394124253,1763310497520,-600.0,0.000498,120]
[394124254,1763310497606,-500.0,0.000498,120]
[394124255,1763310497689,-561.35,0.000498,120]
[394124256,1763310497775,-172.26763195,0.000498,120]
[394124257,1763310497867,-150.0,0.00049848,30]
[394124258,1763310497968,-500.0,0.00049863,60]
[394124259,1763310498062,-507.37416,0.00049876,30]
[394124260,1763310498158,-1000.0,0.00049908,30]
[394124261,1763310498527,-150.0,0.00049956,30]
[394124262,1763310498623,-500.0,0.00049968,120]
[394124263,1763310498726,-150.0,0.00049988,30]
[394124264,1763310498827,-500.0,0.00049999,120]
[394124265,1763310498931,-254.34999578,0.00049999,120]
[394124266,1763310499025,-181.3841226,0.00049999,120]
[394124267,1763310499110,-431.53049441,0.00049999,120]
[394124268,1763310499196,-500.0,0.00049999,120]
[394124269,1763310499279,-401.52049135,0.00049999,120]
[394124270,1763310499376,-500.0,0.00049999,120]
[394124271,1763310499460,-500.0,0.00049999,120]
[394124272,1763310499544,-500.0,0.00049999,120]
[394124273,1763310499633,-389.5817551,0.00049999,120]
[394124274,1763310499718,-500.0,0.00049999,120]
[394124276,1763310499805,-500.0,0.00049999,120]
[394124277,1763310499890,-500.0,0.00049999,120]
[394124278,1763310499981,-500.0,0.00049999,120]
[394124279,1763310500082,-500.0,0.00049999,120]
[394124280,1763310500189,-257.71750736,0.00049999,120]
[394124281,1763310500283,-378.6450153,0.00049999,120]
[394124282,1763310500373,-500.0,0.00049999,120]
[394124283,1763310500471,-500.0,0.00049999,120]
[394124284,1763310500555,-500.0,0.00049999,120]
[394124285,1763310500644,-500.0,0.00049999,120]
[394124286,1763310500751,-350.0,0.00049999,120]
[394124287,1763310500841,-166.96052108,0.00049999,120]
[394124288,1763310500941,-289.23278284,0.00049999,120]
[394124289,1763310501029,-500.0,0.00049999,120]
[394124290,1763310501116,-500.0,0.00049999,120]
[394124291,1763310501195,-195.07060276,0.00049999,120]
[394124292,1763310501282,-50000.0,0.0005,50]
[394124293,1763310501362,-244.22,0.0005,120]
[394124295,1763310501445,-1000000.0,0.0005,120]
[394124296,1763310501533,-1000000.0,0.0005,120]
[394124297,1763310501621,-1000000.0,0.0005,120]
[394124298,1763310501707,-853560.64383668,0.0005,120]
[394124299,1763310502618,2336.50952005,0.00015,2]
[394124300,1763310502645,7825.95970403,0.00015,2]
[394124302,1763310513401,-151.0,0.00035,31]
[394124303,1763310513497,-151.0,0.00035,31]
[394124304,1763310513605,-151.0,0.00035,31]
[394124305,1763310513706,-151.0,0.00035,31]
[394124307,1763310513802,-151.0,0.00035,31]
[394124308,1763310513898,-151.0,0.00035,31]
[394124309,1763310514003,-151.0,0.0003691,31]
[394124310,1763310514095,-151.0,0.0003691,31]
[394124311,1763310514188,-151.0,0.0003691,31]
[394124312,1763310514273,-218.362936,0.0003691,31]
[394124313,1763310514372,-151.0,0.00039888,120]
[394124314,1763310514455,-151.0,0.00039888,120]
[394124315,1763310514539,-151.0,0.00039888,120]
[394124316,1763310514633,-706.83,0.00041448,30]
[394124317,1763310515146,-250.0,0.00049315,30]
[394124318,1763310515241,-250.0,0.00049315,30]
[394124319,1763310515329,-250.0,0.00049315,30]
[394124320,1763310515419,-250.0,0.00049315,30]
[394124321,1763310515504,-250.0,0.00049315,30]
[394124322,1763310515589,-250.0,0.00049315,30]
[394124323,1763310515674,-250.0,0.00049315,30]
[394124324,1763310515754,-250.0,0.00049315,30]
[394124325,1763310515834,-250.0,0.00049315,30]
[394124326,1763310515917,-250.0,0.00049315,30]
[394124327,1763310516004,-250.0,0.00049315,30]
[394124328,1763310516090,-250.0,0.00049315,30]
[394124329,1763310516179,-250.0,0.00049315,30]
[394124330,1763310516257,-250.0,0.00049315,30]
[394124331,1763310516335,-250.0,0.00049315,30]
[394124332,1763310516418,-250.0,0.00049315,30]
[394124333,1763310516495,-250.0,0.00049315,30]
[394124334,1763310516571,-250.0,0.00049315,30]
[394124335,1763310516645,-1000.0,0.00049493,30]
[394124336,1763310516722,-1000.0,0.00049561,30]
[394124337,1763310516811,-146439.35616332,0.0005,120]
[394124338,1763310516895,-1000000.0,0.0005,120]
[394124339,1763310516993,-1000000.0,0.0005,120]
[394124340,1763310517093,-1000000.0,0.0005,120]
[394124341,1763310517188,-1000000.0,0.0005,120]
[394124342,1763310517279,-844323.45090068,0.0005,120]
[394124343,1763310517445,1670.80181638,0.00014999,2]
[394124344,1763310548252,503.24847959,7.945e-05,2]
[394124345,1763310548278,7704.96175741,7.945e-05,2]
[394124346,1763310550487,2295.04824259,0.00015,2]
[394124347,1763310550512,9.81055199,0.00015,2]
[394124348,1763310558518,-1625.7193506,0.00041448,18]
[394124349,1763310558549,-1613.49538583,0.00041448,10]
[394124350,1763310558583,-729.56363905,0.00041448,10]
[394124351,1763310558614,-1065.16290785,0.00041448,15]
[394124352,1763310558649,-1000.0,0.00041448,10]
[394124353,1763310558679,-500.0,0.00041448,10]
[394124354,1763310558714,-633.34408405,0.00041448,14]
[394124355,1763310558749,-300.0,0.00041448,15]
[394124356,1763310558779,-2327.0889702,0.00041448,10]
[394124357,1763310558808,-2353.93219731,0.00041448,10]
[394124358,1763310558841,-232.91413103,0.00041448,14]
[394124359,1763310558872,-194.88952382,0.00041448,10]
[394124360,1763310558906,-231.60319156,0.00041448,15]
[394124361,1763310558938,-280.93500525,0.00041448,10]
[394124362,1763310558971,-275.0,0.00041448,14]
[394124363,1763310559001,-150.0,0.00041448,14]
[394124364,1763310559031,-166.1191,0.00041448,10]
[394124365,1763310559062,-2383.56861532,0.00041448,14]
[394124366,1763310559096,-17431.91256077,0.00041448,20]
[394124367,1763310559133,-40000.0,0.00041448,10]
[394124368,1763310559164,-568.72872316,0.00041448,10]
[394124369,1763310559198,-414.94786128,0.00041448,14]
[394124370,1763310559231,-500.0,0.00041448,14]
[394124371,1763310559261,-500.0,0.00041448,14]
[394124372,1763310559291,-500.0,0.00041448,14]
[394124373,1763310559322,-500.0,0.00041448,14]
[394124374,1763310559357,-165.98427922,0.00041448,14]
[394124375,1763310559390,-500.0,0.00041448,15]
[394124376,1763310559420,-500.0,0.00041448,15]
[394124377,1763310559451,-500.0,0.00041448,15]
[394124378,1763310559487,-358.61378939,0.00041448,15]
[394124379,1763310559520,-500.0,0.00041448,10]
[394124380,1763310559551,-500.0,0.00041448,10]
[394124381,1763310559583,-500.0,0.00041448,10]
[394124382,1763310559614,-500.0,0.00041448,10]
[394124383,1763310559643,-500.0,0.00041448,10]
[394124384,1763310559910,-500.0,0.00041448,10]
[394124385,1763310559941,-500.0,0.00041448,10]
[394124386,1763310559972,-500.0,0.00041448,10]
[394124387,1763310560003,-500.0,0.00041448,10]
[394124388,1763310560037,-500.0,0.00041448,10]
[394124389,1763310560069,-630.86010212,0.00041448,10]
[394124390,1763310560101,-500.0,0.00041448,15]
[394124391,1763310560131,-500.0,0.00041448,15]
[394124392,1763310560162,-500.0,0.00041448,15]
[394124393,1763310560192,-500.0,0.00041448,15]
[394124394,1763310560224,-500.0,0.00041448,15]
[394124395,1763310560255,-312.61131245,0.00041448,15]
[394124396,1763310560287,-500.0,0.00041448,15]
[394124397,1763310560320,-500.0,0.00041448,120]
[394124398,1763310560353,-500.0,0.00041448,120]
[394124399,1763310560397,-500.0,0.00041448,120]
[394124400,1763310560432,-500.0,0.00041448,120]
[394124401,1763310560467,-500.0,0.00041448,120]
[394124402,1763310560502,-500.0,0.00041448,120]
[394124403,1763310560537,-419.73,0.00041448,120]
[394124404,1763310560572,-500.0,0.00041448,120]
[394124405,1763310560616,-409.64804682,0.00041448,120]
[394124406,1763310560654,-500.0,0.00041448,120]
[394124407,1763310560688,-545.87,0.00041448,120]
[394124408,1763310560723,-545.87,0.00041448,120]
[394124409,1763310560755,-545.87,0.00041448,120]
[394124410,1763310560788,-545.87,0.00041448,120]
[394124411,1763310560818,-545.87,0.00041448,120]
[394124412,1763310560852,-545.87,0.00041448,120]
[394124413,1763310560889,-545.87,0.00041448,120]
[394124414,1763310560932,-545.87,0.00041448,120]
[394124415,1763310560968,-545.87,0.00041448,120]
[394124416,1763310561003,-545.87,0.00041448,120]
[394124417,1763310561037,-545.87,0.00041448,120]
[394124418,1763310561071,-545.87,0.00041448,120]
[394124419,1763310561104,-545.87,0.00041448,120]
[394124420,1763310561138,-545.87,0.00041448,120]
[394124421,1763310561176,-545.87,0.00041448,120]
[394124422,1763310561209,-545.87,0.00041448,120]
[394124423,1763310561243,-545.87,0.00041448,120]
[394124424,1763310561276,-545.87,0.00041448,120]
[394124425,1763310561310,-545.87,0.00041448,120]
[394124426,1763310561341,-545.87,0.00041448,120]
[394124427,1763310561372,-545.87,0.00041448,120]
[394124428,1763310561408,-545.87,0.00041448,120]
[394124429,1763310561439,-545.87,0.00041448,120]
[394124430,1763310561471,-545.87,0.00041448,120]
[394124431,1763310561503,-1944.8,0.00041448,120]
[394124432,1763310561536,-1944.8,0.00041448,120]
[394124433,1763310561568,-1944.8,0.00041448,120]
[394124434,1763310561602,-1944.8,0.00041448,120]
[394124435,1763310561635,-1944.8,0.00041448,120]
[394124436,1763310561668,-1944.8,0.00041448,120]
[394124437,1763310561705,-1944.8,0.00041448,120]
[394124438,1763310561739,-1944.8,0.00041448,120]
[394124439,1763310561773,-1944.8,0.00041448,120]
[394124440,1763310561806,-1944.8,0.00041448,120]
[394124441,1763310561839,-1944.8,0.00041448,120]
[394124442,1763310561871,-1944.8,0.00041448,120]
[394124443,1763310561907,-1944.8,0.00041448,120]
[394124444,1763310561942,-1944.8,0.00041448,120]
[394124445,1763310561979,-1944.8,0.00041448,120]
[394124446,1763310562014,-1944.8,0.00041448,120]
[394124447,1763310562047,-1944.8,0.00041448,120]
[394124448,1763310562079,-1944.8,0.00041448,120]
[394124449,1763310562112,-1944.8,0.00041448,120]
[394124450,1763310562144,-1944.8,0.00041448,120]
[394124451,1763310562180,-1944.8,0.00041448,120]
[394124452,1763310562214,-1944.8,0.00041448,120]
[394124453,1763310562252,-1944.8,0.00041448,120]
[394124454,1763310562285,-1944.8831157,0.00041448,120]
[394124455,1763310562316,-1580.56,0.00041448,120]
[394124456,1763310562347,-1580.56,0.00041448,120]
[394124457,1763310562384,-1580.56,0.00041448,120]
[394124458,1763310562416,-1580.56,0.00041448,120]
[394124459,1763310562446,-1580.56,0.00041448,120]
[394124460,1763310562476,-1580.56,0.00041448,120]
[394124461,1763310562506,-500.0,0.00041448,120]
[394124462,1763310562538,-1580.56,0.00041448,120]
[394124463,1763310562567,-500.0,0.00041448,120]
[394124464,1763310562600,-1580.56,0.00041448,120]
[394124465,1763310562632,-1580.56,0.00041448,120]
[394124466,1763310562663,-1580.56,0.00041448,120]
[394124467,1763310562693,-1580.56,0.00041448,120]
[394124468,1763310562722,-1580.56,0.00041448,120]
[394124469,1763310562754,-1580.56,0.00041448,120]
[394124470,1763310562784,-1580.56,0.00041448,120]
[394124471,1763310562815,-1580.56,0.00041448,120]
[394124472,1763310562844,-1580.56,0.00041448,120]
[394124473,1763310562873,-1580.56,0.00041448,120]
[394124474,1763310562907,-1580.56,0.00041448,120]
[394124475,1763310562939,-1580.56,0.00041448,120]
[394124476,1763310562970,-1580.56,0.00041448,120]
[394124477,1763310563242,-1580.56,0.00041448,120]
[394124478,1763310563274,-1580.56,0.00041448,120]
[394124479,1763310563306,-1580.56,0.00041448,120]
[394124480,1763310563337,-1580.56176577,0.00041448,120]
[394124481,1763310563375,-500.0,0.00041448,120]
[394124482,1763310563408,-500.0,0.00041448,120]
[394124483,1763310563439,-500.0,0.00041448,120]
[394124484,1763310563469,-500.0,0.00041448,120]
[394124485,1763310563499,-500.0,0.00041448,120]
[394124486,1763310563529,-500.0,0.00041448,120]
[394124487,1763310563560,-500.0,0.00041448,120]
[394124488,1763310563594,-500.0,0.00041448,120]
[394124489,1763310563625,-188.57,0.00041448,120]
[394124490,1763310563657,-500.0,0.00041448,120]
[394124491,1763310563688,-500.0,0.00041448,120]
[394124492,1763310563722,-166.66,0.00041448,120]
[394124493,1763310563753,-500.0,0.00041448,120]
[394124494,1763310563785,-500.0,0.00041448,120]
[394124495,1763310563816,-209.92,0.00041448,120]
[394124496,1763310563850,-500.0,0.00041448,120]
[394124497,1763310563883,-500.0,0.00041448,120]
[394124498,1763310563919,-500.0,0.00041448,120]
[394124499,1763310563953,-500.0,0.00041448,120]
[394124500,1763310563987,-500.0,0.00041448,120]
[394124501,1763310564024,-500.0,0.00041448,120]
[394124502,1763310564057,-500.0,0.00041448,120]
[394124503,1763310564095,-349.1,0.00041448,120]
[394124504,1763310564128,-500.0,0.00041448,120]
[394124505,1763310564163,-200.0,0.00041448,30]
[394124506,1763310564197,-300.0,0.00041448,30]
[394124507,1763310564231,-500.0,0.00041448,120]
[394124508,1763310564266,-500.0,0.00041448,120]
[394124509,1763310564300,-500.0,0.00041448,120]